bitfinex/quotes_SOLUSD_20251208
["timestamp","ask_amount","ask_price","bid_price","bid_amount"]
[1765209712725,14.24052866,135.25,135.21,6.14058374]
[1765209712726,8.80994492,135.25,135.21,6.14058374]
[1765209713024,39.40685241,135.26,135.23,5.43058374]
[1765209713025,15.49334689,135.26,135.23,5.43058374]
[1765209713426,15.49334689,135.26,135.23,6.14058374]
[1765209713728,15.49334689,135.26,135.23,0.71]
[1765209714514,15.49334689,135.26,135.23,6.14058374]
[1765209714717,32.72108295,135.28,135.25,5.43058374]
[1765209714718,8.80994492,135.28,135.25,5.43058374]
[1765209714930,16.308864,135.31,135.23,8.10462089]
[1765209714931,8.80994492,135.29,135.26,5.43058374]
[1765209715142,16.308864,135.23,135.21,0.71]
[1765209715435,7.39535571,135.22,135.21,0.71]
[1765209715649,8.1,135.23,135.21,6.14058374]
[1765209716022,16.90994492,135.26,135.22,6.14058374]
[1765209716240,48.21673749,135.26,135.22,0.71]
[1765209716437,8.80994492,135.24,135.2,6.14058374]
[1765209716815,8.1,135.23,135.2,6.14058374]
[1765209717028,8.1,135.23,135.2,0.71]
[1765209717245,8.1,135.23,135.18,5.43058374]
[1765209717246,14.24052866,135.22,135.18,0.71]
[1765209717420,7.39590266,135.21,135.18,0.71]
[1765209717630,8.1,135.2,135.18,0.71]
[1765209718125,8.1,135.2,135.16,0.71]
[1765209718341,8.1,135.2,135.17,0.71]
[1765209718513,15.4965497,135.2,135.17,0.71]
[1765209719537,20.92713344,135.2,135.17,0.71]
[1765209719714,21.50713344,135.2,135.15,8.10914731]
[1765209719921,15.4965497,135.2,135.16,8.10855757]
[1765209720325,14.24052866,135.19,135.13,5.43058374]
[1765209720640,21.63767185,135.19,135.14,7.39969366]
[1765209720941,15.49608269,135.21,135.16,7.39862471]
[1765209721147,30.54939266,135.23,135.16,7.39862471]
[1765209721451,8.80994492,135.21,135.17,0.71]
[1765209722428,5.43058374,135.2,135.17,0.71]
[1765209722655,5.43058374,135.2,135.11,0.71]
[1765209722656,8.80994492,135.17,135.11,0.71]
[1765209722868,5.43058374,135.13,135.09,0.81]
[1765209723067,8.1,135.12,135.09,0.81]
[1765209723429,8.1,135.12,135.09,8.2123889]
[1765209723631,8.1,135.12,135.09,0.81]
[1765209723861,8.1,135.12,135.1,0.71]
[1765209724063,16.308864,135.1,135.09,0.1]
[1765209724265,30.54939266,135.1,135.09,0.1]
[1765209724644,0.58,135.15,135.09,0.81]
[1765209724847,14.24052866,135.16,135.1,5.43058374]
[1765209725029,8.1,135.15,135.11,6.14058374]
[1765209725235,5.43058374,135.17,135.12,0.68]
[1765209725537,5.43058374,135.13,135.09,0.78]
[1765209725857,8.1,135.14,135.11,5.43058374]
[1765209726035,16.90994492,135.16,135.11,5.43058374]
[1765209726235,16.90994492,135.16,135.09,0.78]
[1765209726236,8.1,135.16,135.12,6.11058374]
[1765209726540,8.1,135.16,135.13,7.40028121]
[1765209726735,7.39773022,135.18,135.13,13.51086495]
[1765209726960,14.24052866,135.19,135.14,0.68]
[1765209727485,8.1,135.2,135.15,5.43058374]
[1765209727954,8.1,135.2,135.16,0.68]
[1765209728459,8.1,135.2,135.17,5.43058374]
[1765209728664,16.20533081,135.22,135.18,7.39754401]
[1765209728988,8.80994492,135.22,135.18,8.07754401]
[1765209729280,16.20545237,135.22,135.19,0.68]
[1765209729850,8.1,135.23,135.19,6.11058374]
[1765209730054,8.80994492,135.25,135.21,5.43058374]
[1765209730251,7.39321631,135.26,135.17,25.89312264]
[1765209730252,8.1,135.26,135.2,0.68]
[1765209730476,15.49318737,135.26,135.21,5.43058374]
[1765209730647,14.24052866,135.25,135.2,8.07592108]
[1765209730850,8.80994492,135.25,135.21,5.43058374]
[1765209731075,8.80994492,135.25,135.21,0.68]
[1765209731272,14.24052866,135.23,135.18,0.68]
[1765209731473,13.53058374,135.22,135.18,0.68]
[1765209731672,8.80994492,135.21,135.18,0.68]
[1765209731858,14.82052866,135.21,135.16,0.68]
[1765209732064,8.80994492,135.19,135.16,0.68]
[1765209732255,8.80994492,135.19,135.14,12.82996491]
[1765209732256,22.34052866,135.19,135.14,8.07964802]
[1765209732446,22.34052866,135.19,135.11,18.50214284]
[1765209732447,8.80994492,135.15,135.11,0.68]
[1765209732654,7.3997336,135.14,135.1,7.40176846]
[1765209732880,24.30929254,135.15,135.1,13.5123522]
[1765209733074,29.73987628,135.15,135.11,0.68]
[1765209733256,8.1,135.15,135.11,8.08126749]
[1765209733458,5.43058374,135.16,135.11,8.08126749]
[1765209733459,8.1,135.16,135.12,5.43058374]
[1765209733657,5.43058374,135.19,135.13,6.11058374]
[1765209733949,16.90994492,135.2,135.15,5.43058374]
[1765209734153,8.1,135.2,135.16,5.43058374]
[1765209734553,8.1,135.2,135.18,12.82812775]
[1765209734781,8.1,135.2,135.18,7.39754401]
[1765209735557,8.1,135.2,135.17,12.82865535]
[1765209735782,8.80994492,135.19,135.16,0.68]
[1765209736082,20.92656074,135.21,135.16,8.07819149]
[1765209736382,5.43058374,135.19,135.14,8.07938094]
[1765209736676,12.82801776,135.19,135.14,8.07938094]
[1765209736867,12.82801776,135.19,135.15,0.68]
[1765209737576,8.1,135.18,135.15,0.68]
[1765209737783,5.43058374,135.16,135.11,8.0809849]
[1765209737963,13.53058374,135.15,135.11,8.08096179]
[1765209738280,8.1,135.15,135.11,0.68]
[1765209738453,5.43058374,135.13,135.09,0.1]
[1765209738658,8.1,135.12,135.09,0.1]
[1765209738959,8.1,135.12,135.09,0.78]
[1765209739367,13.53058374,135.12,135.09,0.1]
[1765209739555,8.1,135.12,135.09,0.1]
[1765209739756,7.40137665,135.11,135.09,0.1]
[1765209740367,12.83196039,135.11,135.09,0.1]
[1765209740574,8.80994492,135.1,135.09,0.1]
[1765209740766,14.24052866,135.1,135.09,0.1]
[1765209741878,21.64245316,135.1,135.09,0.1]
[1765209742683,26.46694734,135.1,135.09,0.1]
[1765209743386,27.04694734,135.1,135.09,0.1]
[1765209744173,26.46694734,135.1,135.09,0.1]
[1765209744374,26.46694734,135.1,135.09,0.79]
[1765209744375,13.6344391,135.1,135.09,0.79]
[1765209744574,26.67989288,135.15,135.09,0.79]
[1765209744575,8.1,135.12,135.09,6.22058374]
[1765209744793,4.82395879,135.14,135.09,6.22058374]
[1765209744985,8.1,135.13,135.1,6.12058374]
[1765209745173,20.32321071,135.15,135.11,0.69]
[1765209745375,15.49925192,135.15,135.11,0.69]
[1765209745579,0.5,135.12,135.11,0.69]
[1765209746104,0.5,135.12,135.09,7.50244529]
[1765209746401,0.5,135.12,135.09,0.1]
[1765209746402,16.00117808,135.12,135.09,0.1]
[1765209746777,16.58117808,135.12,135.09,0.1]
[1765209746992,14.24052866,135.1,135.09,0.1]
[1765209747297,10.26104161,135.1,135.09,0.1]
[1765209747473,4.83045787,135.1,135.09,0.1]
[1765209747874,4.83045787,135.1,135.09,0.79]
[1765209748074,20.83132053,135.12,135.09,0.79]
[1765209748270,4.83045787,135.11,135.09,0.1]
[1765209748495,14.24052866,135.1,135.09,0.1]
[1765209748690,19.65098653,135.1,135.09,1e-08]
[1765209748873,8.80994492,135.06,135.0,0.02]
[1765209749083,8.80994492,135.04,135.0,0.02]
[1765209749396,8.80994492,135.02,135.0,0.02]
[1765209749596,33.21880892,135.01,135.0,0.02]
[1765209749893,46.03125035,135.01,135.0,0.02]
[1765209750199,51.46183409,135.01,135.0,0.02]
[1765209750772,13.6355276,135.01,135.0,0.02]
[1765209750979,8.1,135.01,135.0,0.71]
[1765209751178,8.1,135.01,135.0,0.02]
[1765209751385,8.1,135.01,135.0,0.71]
[1765209751586,5.43058374,135.04,135.0,0.71]
[1765209751783,13.53058374,135.03,135.0,0.71]
[1765209752004,8.1,135.03,135.0,8.11738032]
[1765209752301,8.1,135.06,135.02,5.43058374]
[1765209752598,8.1,135.06,135.0,26.63589883]
[1765209752599,8.1,135.06,135.01,6.12058374]
[1765209752979,8.1,135.06,135.03,5.43058374]
[1765209753198,8.1,135.06,135.05,5.43058374]
[1765209753382,8.1,135.09,135.05,5.43058374]
[1765209753587,8.1,135.09,135.07,5.43058374]
[1765209753981,8.1,135.09,135.08,0.69]
[1765209754182,5.43058374,135.14,135.08,6.12058374]
[1765209754393,8.1,135.13,135.11,5.43058374]
[1765209754591,8.1,135.13,135.07,7.40343784]
[1765209754592,8.1,135.13,135.09,6.12058374]
[1765209754796,8.1,135.13,135.1,5.43058374]
[1765209755002,15.49870332,135.16,135.12,5.43058374]
[1765209755218,15.49870332,135.16,135.07,25.91235914]
[1765209755219,8.1,135.16,135.13,5.43058374]
[1765209755604,8.1,135.16,135.13,6.12058374]
[1765209755803,8.1,135.16,135.14,0.69]
[1765209756006,15.49871595,135.16,135.12,5.43058374]
[1765209756312,20.92929969,135.16,135.1,0.69]
[1765209756492,8.1,135.16,135.13,7.40004634]
[1765209756692,8.1,135.16,135.13,12.83063008]
[1765209756890,8.1,135.16,135.14,0.69]
[1765209757506,8.1,135.16,135.14,13.52029493]
[1765209757807,8.1,135.16,135.14,8.08971119]
[1765209758008,8.1,135.16,135.07,54.32628461]
[1765209758009,8.1,135.16,135.13,5.43058374]
[1765209758510,15.49875919,135.16,135.13,6.12058374]
[1765209759112,8.1,135.17,135.14,6.12058374]
[1765209759513,8.1,135.17,135.14,5.43058374]
[1765209759820,8.1,135.17,135.15,0.69]
[1765209760022,8.1,135.17,135.14,6.12058374]
[1765209760199,8.80994492,135.14,135.08,8.09291315]
[1765209760400,5.43058374,135.12,135.08,0.69]
[1765209760619,5.43058374,135.12,135.07,5.43058374]
[1765209760806,14.82052866,135.11,135.05,8.09451174]
[1765209761006,8.1,135.1,135.07,12.83410074]
[1765209761201,8.1,135.1,135.07,5.43058374]
[1765209761400,8.1,135.1,135.07,6.12058374]
[1765209761621,8.1,135.1,135.08,0.69]
[1765209763209,8.1,135.1,135.09,5.43058374]
[1765209763608,8.80994492,135.13,135.09,6.12058374]
[1765209763811,8.80994492,135.13,135.1,0.69]
[1765209763812,16.90994492,135.13,135.1,0.69]
[1765209764029,24.31063117,135.13,135.1,0.69]
[1765209764215,15.50068625,135.13,135.1,0.69]
[1765209764600,8.1,135.13,135.1,0.69]
[1765209764805,8.1,135.13,135.1,8.09176987]
[1765209765005,8.1,135.13,135.1,13.52235361]
[1765209765726,8.80994492,135.15,135.11,6.12058374]
[1765209765915,8.1,135.15,135.12,5.43058374]
[1765209766111,8.1,135.15,135.13,0.69]
[1765209766316,8.1,135.15,135.13,6.12058374]
[1765209766535,15.49931235,135.15,135.13,0.69]
[1765209767123,8.1,135.15,135.13,0.69]
[1765209769414,8.1,135.15,135.13,13.52079138]
[1765209769832,8.1,135.15,135.14,0.69]
[1765209770012,8.1,135.17,135.14,6.12058374]
[1765209770412,8.1,135.17,135.15,0.69]
[1765209770828,15.49812361,135.17,135.13,16.50550324]
[1765209771131,8.80994492,135.16,135.12,8.4152956]
[1765209771334,17.80524052,135.16,135.11,8.4152956]
[1765209771539,17.22524052,135.16,135.12,0.68]
[1765209771736,8.80994492,135.16,135.12,9.0952956]
[1765209771943,8.1,135.16,135.14,8.4152956]
[1765209772437,15.49892289,135.16,135.12,9.0952956]
[1765209772638,8.80994492,135.15,135.12,0.68]
[1765209773030,8.80994492,135.15,135.11,8.4152956]
[1765209773344,42.41081511,135.16,135.12,0.68]
[1765209773543,15.49892289,135.16,135.12,9.0952956]
[1765209774740,15.49892289,135.16,135.12,0.68]
[1765209775444,42.41081511,135.16,135.12,0.68]
[1765209775741,42.41081511,135.16,135.1,15.81704553]
[1765209776038,17.22524052,135.12,135.07,0.68]
[1765209776228,8.4152956,135.13,135.08,8.4152956]
[1765209776429,8.1,135.12,135.08,8.4152956]
[1765209776624,8.1,135.12,135.09,0.68]
[1765209777024,8.1,135.11,135.09,0.68]
[1765209777230,8.4152956,135.13,135.09,0.68]
[1765209777446,8.1,135.12,135.09,0.68]
[1765209777952,23.91616318,135.12,135.07,0.68]
[1765209778123,34.31823541,135.12,135.08,0.68]
[1765209778318,8.1,135.11,135.07,16.49847598]
[1765209778616,16.39616318,135.12,135.08,0.68]
[1765209778849,8.1,135.11,135.08,8.08301895]
[1765209779147,8.1,135.1,135.08,16.49831455]
[1765209779354,8.1,135.1,135.09,0.68]
[1765209779747,8.1,135.1,135.08,7.40301895]
[1765209779967,8.1,135.1,135.09,0.68]
[1765209780324,17.0952956,135.1,135.06,0.68]
[1765209780526,8.4152956,135.08,135.04,0.68]
[1765209780845,16.5152956,135.07,135.04,0.68]
[1765209781143,8.1,135.07,135.04,0.68]
[1765209781341,8.1,135.07,135.04,8.08516984]
[1765209781522,8.1,135.07,135.01,18.51632026]
[1765209781523,17.22524052,135.06,135.01,0.68]
[1765209781730,8.4152956,135.04,135.0,0.02]
[1765209781931,8.1,135.03,135.0,0.7]
[1765209783340,8.4152956,135.02,135.0,0.02]
[1765209783532,24.50158232,135.03,135.0,0.02]
[1765209783733,8.1,135.02,135.01,0.68]
[1765209783939,8.1,135.02,135.0,0.7]
[1765209784238,8.1,135.02,135.0,0.02]
[1765209784632,8.1,135.02,135.0,0.7]
[1765209785145,8.1,135.03,135.0,0.7]
[1765209785550,8.1,135.03,135.0,8.10729161]
[1765209785753,8.1,135.02,135.0,8.10729161]
[1765209785931,8.1,135.02,135.01,0.68]
[1765209786130,8.1,135.02,135.0,7.42729161]
[1765209786457,8.1,135.02,135.01,0.68]
[1765209786837,8.4152956,135.08,135.01,9.0952956]
[1765209787048,32.72896333,135.07,135.02,8.4152956]
[1765209787235,8.4152956,135.05,135.0,7.42729161]
[1765209787435,8.1,135.04,135.0,16.52258721]
[1765209787667,8.1,135.04,135.01,9.0952956]
[1765209788152,8.1,135.04,135.0,25.94581012]
[1765209788153,8.1,135.04,135.03,8.4152956]
[1765209788329,8.1,135.06,135.03,8.4152956]
[1765209788529,8.1,135.06,135.04,9.0952956]
[1765209788749,7.40263231,135.09,135.05,9.0952956]
[1765209788954,8.1,135.09,135.05,9.0952956]
[1765209789156,8.1,135.09,135.06,0.68]
[1765209789371,8.1,135.09,135.07,8.4152956]
[1765209789739,8.1,135.09,135.07,0.68]
[1765209789932,23.91777318,135.09,135.04,0.68]
[1765209790128,24.49777318,135.09,135.04,0.68]
[1765209790353,24.49777318,135.09,135.03,8.4152956]
[1765209790354,8.9952956,135.08,135.03,7.40558928]
[1765209790554,8.4152956,135.06,135.0,27.6332155]
[1765209790756,8.1,135.05,135.01,16.50181433]
[1765209790934,8.1,135.05,135.02,8.4152956]
[1765209791129,8.1,135.05,135.02,9.0952956]
[1765209791344,8.1,135.07,135.03,9.0952956]
[1765209791541,8.1,135.07,135.04,15.82035056]
[1765209791747,8.1,135.07,135.04,16.50035056]
[1765209791947,15.50362304,135.07,135.04,0.68]
[1765209792856,15.50362304,135.07,135.03,15.82084176]
[1765209793057,23.91891864,135.07,135.02,7.40626878]
[1765209793258,8.4152956,135.04,135.0,0.02]
[1765209793556,16.5152956,135.03,135.0,0.02]
[1765209794755,8.1,135.03,135.0,9.1152956]
[1765209794934,32.12833165,135.06,135.01,9.0952956]
[1765209795133,16.2130602,135.08,135.04,8.4152956]
[1765209795443,8.1,135.07,135.03,8.4152956]
[1765209795646,8.1,135.07,135.04,7.40521327]
[1765209795842,8.1,135.07,135.04,8.08521327]
[1765209796146,15.50375667,135.07,135.04,8.4152956]
[1765209796462,15.50375667,135.07,135.04,0.68]
[1765209796662,8.1,135.07,135.04,0.68]
[1765209796846,8.1,135.07,135.04,9.0952956]
[1765209797042,15.50372224,135.07,135.03,15.82092988]
[1765209797248,15.50372224,135.07,135.03,16.50094677]
[1765209797762,15.50372224,135.07,135.03,8.4152956]
[1765209797930,8.1,135.07,135.04,0.68]
[1765209798138,15.50359853,135.07,135.03,16.50074811]
[1765209798442,15.50359853,135.07,135.04,0.68]
[1765209798842,15.50361502,135.07,135.04,0.68]
[1765209799560,15.50361502,135.07,135.03,7.40555948]
[1765209799757,15.50361502,135.07,135.03,16.50085508]
[1765209799959,15.50361502,135.07,135.03,8.08555948]
[1765209800336,8.1,135.07,135.04,9.0952956]
[1765209800759,8.1,135.07,135.05,0.68]
[1765209800950,7.98177616,135.11,135.06,8.4152956]
[1765209801157,7.98177616,135.11,135.05,0.68]
[1765209801158,8.1,135.1,135.07,8.4152956]
[1765209801541,8.1,135.1,135.08,0.68]
[1765209801851,8.1,135.1,135.08,8.08278115]
[1765209802440,8.1,135.1,135.08,16.49807675]
[1765209802664,7.40045103,135.13,135.09,9.0952956]
[1765209802846,8.1,135.11,135.09,9.0952956]
[1765209803048,8.4152956,135.15,135.1,9.0952956]
[1765209803252,8.1,135.13,135.1,9.0952956]
[1765209804157,8.9952956,135.12,135.07,8.4152956]
[1765209804466,8.9952956,135.12,135.07,15.81849795]
[1765209804656,8.9952956,135.12,135.07,16.49849795]
[1765209804855,8.4152956,135.1,135.04,16.50032897]
[1765209805055,8.1,135.09,135.05,8.4152956]
[1765209805249,8.1,135.09,135.04,16.50032897]
[1765209805250,16.5152956,135.09,135.04,16.50032897]
[1765209805465,8.4152956,135.08,135.04,8.08516621]
[1765209805772,8.4152956,135.08,135.04,8.08514166]
[1765209805974,8.1,135.09,135.05,9.0952956]
[1765209806353,15.50253343,135.09,135.05,16.49965498]
[1765209806675,15.50253343,135.09,135.05,0.68]
[1765209806676,23.91782903,135.09,135.05,0.68]
[1765209806971,15.50253343,135.09,135.06,0.68]
[1765209807156,8.1,135.09,135.06,0.68]
[1765209807355,15.5025151,135.09,135.06,0.68]
[1765209807862,8.1,135.09,135.06,0.68]
[1765209808266,8.1,135.09,135.07,7.40356852]
[1765209808558,8.1,135.09,135.07,15.81886412]
[1765209808758,8.1,135.09,135.08,0.68]
[1765209808948,15.81574875,135.13,135.08,9.0952956]
[1765209809139,15.81574875,135.13,135.09,8.4152956]
[1765209809140,8.1,135.12,135.09,8.4152956]
[1765209809344,8.1,135.12,135.09,9.0952956]
[1765209810449,8.1,135.12,135.09,15.81731037]
[1765209810652,8.1,135.12,135.1,9.0952956]
[1765209812462,8.4152956,135.16,135.11,9.0952956]
[1765209812665,15.49920858,135.15,135.11,16.49635521]
[1765209812851,23.91450418,135.15,135.11,8.08105961]
[1765209813262,15.49920858,135.15,135.11,16.49635521]
[1765209813469,8.1,135.15,135.12,0.68]
[1765209813652,8.1,135.15,135.12,9.0952956]
[1765209814695,8.1,135.15,135.13,7.40028121]
[1765209814852,8.80994492,135.18,135.14,9.0952956]
[1765209815050,8.80994492,135.16,135.12,8.4152956]
[1765209815296,8.4152956,135.15,135.11,7.40118228]
[1765209815575,8.1,135.14,135.11,7.40118228]
[1765209815773,8.1,135.14,135.11,8.08118228]
[1765209816081,8.6,135.14,135.11,8.08118228]
[1765209816583,8.6,135.14,135.11,16.49647788]
[1765209816788,15.99975559,135.14,135.11,16.49647788]
[1765209816957,8.6,135.14,135.11,8.08118228]
[1765209817284,8.6,135.14,135.11,16.49647788]
[1765209817651,15.99979038,135.14,135.1,15.8170358]
[1765209817858,17.22524052,135.13,135.08,16.49811593]
[1765209818050,17.22524052,135.13,135.07,8.4152956]
[1765209818051,8.4152956,135.12,135.07,8.4152956]
[1765209818278,7.40247242,135.09,135.05,8.08446791]
[1765209818476,7.40247242,135.09,135.04,0.68]
[1765209818477,8.1,135.08,135.04,0.68]
[1765209818780,16.5152956,135.08,135.01,26.61692866]
[1765209818981,8.1,135.08,135.05,16.49980058]
[1765209819202,8.1,135.08,135.06,0.68]
[1765209819709,8.1,135.08,135.06,9.0952956]
[1765209819905,8.1,135.08,135.07,9.0952956]
[1765209820106,8.1,135.1,135.07,9.0952956]
[1765209820306,8.1,135.1,135.08,8.08291864]
[1765209820480,8.1,135.1,135.07,0.68]
[1765209820689,17.0952956,135.1,135.04,9.0952956]
[1765209821004,16.5152956,135.1,135.05,8.4152956]
[1765209821209,23.91743431,135.1,135.06,8.08379547]
[1765209821508,15.50213871,135.1,135.06,0.68]
[1765209821810,8.1,135.1,135.08,7.40298232]
[1765209822181,8.1,135.1,135.09,0.68]
[1765209822382,8.1,135.12,135.1,7.4019245]
[1765209822593,8.1,135.12,135.1,8.0819245]
[1765209822877,17.80524052,135.11,135.06,0.68]
[1765209823103,8.4152956,135.1,135.06,0.68]
[1765209823278,8.1,135.09,135.06,8.08377865]
[1765209823690,8.9952956,135.08,135.03,19.19385118]
[1765209824000,8.4152956,135.08,135.03,27.60914678]
[1765209824200,16.5152956,135.09,135.04,0.68]
[1765209824408,8.4152956,135.08,135.04,8.08476467]
[1765209824782,23.91821955,135.09,135.05,0.68]
[1765209825701,8.9952956,135.08,135.03,8.08553511]
[1765209825875,8.4152956,135.07,135.03,8.08553511]
[1765209826081,8.1,135.06,135.03,8.08553511]
[1765209827014,15.50415958,135.06,135.03,0.68]
[1765209827316,24.49945518,135.06,135.02,7.40615793]
[1765209827500,24.49945518,135.06,135.02,8.08615793]
[1765209827501,23.91945518,135.06,135.02,8.08615793]
[1765209827697,8.1,135.06,135.02,0.68]
[1765209827900,8.1,135.06,135.03,16.50103385]
[1765209828106,8.1,135.06,135.03,35.01543805]
[1765209828316,16.3972888,135.1,135.04,0.68]
[1765209828501,8.1,135.09,135.05,7.40466493]
[1765209829014,8.1,135.09,135.06,0.68]
[1765209829213,8.1,135.09,135.05,8.08466493]
[1765209829414,8.4152956,135.07,135.02,9.0952956]
[1765209829596,8.1,135.06,135.02,8.08585157]
[1765209830002,8.1,135.06,135.03,8.08571319]
[1765209832125,8.1,135.06,135.04,9.0752956]
[1765209832299,8.1,135.06,135.04,8.4152956]
[1765209832500,8.1,135.06,135.05,0.66]
[1765209833001,8.1,135.08,135.05,0.66]
[1765209833201,8.1,135.08,135.05,6.10492526]
[1765209833618,13.54492526,135.08,135.03,8.06571319]
[1765209833819,13.42876631,135.07,135.03,8.06571319]
[1765209834156,14.25487018,135.06,135.01,7.40643529]
[1765209834444,14.12492526,135.05,135.01,7.40682106]
[1765209834736,8.1,135.05,135.02,7.40611822]
[1765209834939,8.1,135.05,135.03,7.4056801]
[1765209835238,8.1,135.05,135.02,7.40605923]
[1765209835440,8.1,135.05,135.02,8.06605923]
[1765209835742,5.44492526,135.04,135.0,8.0870852]
[1765209835946,13.43014211,135.04,135.0,8.0870852]
[1765209836117,13.43014211,135.04,135.0,7.4270852]
[1765209836316,13.43014211,135.04,135.0,8.0870852]
[1765209836840,5.44492526,135.04,135.0,8.0870852]
[1765209837045,20.94978599,135.05,135.0,8.0870852]
[1765209837216,21.52978599,135.05,135.0,8.0870852]
[1765209838242,21.52978599,135.05,135.01,8.06682893]
[1765209838454,5.44492526,135.04,135.0,8.08739245]
[1765209838613,6.02492526,135.04,135.0,8.08739245]
[1765209839240,6.02492526,135.04,135.0,0.02]
[1765209839445,0.58,135.03,135.0,0.02]
[1765209839641,8.1,135.02,135.0,0.02]
[1765209840365,21.53143152,135.02,135.0,0.02]
[1765209840552,8.1,135.02,135.0,0.02]
[1765209840856,8.12,135.02,135.0,6.13492526]
[1765209841379,8.12,135.04,135.01,0.67]
[1765209841534,8.12,135.06,135.02,5.44492526]
[1765209841734,8.12,135.06,135.03,5.44492526]
[1765209841957,8.12,135.06,135.01,0.67]
[1765209841958,8.12,135.06,135.02,5.44492526]
[1765209842134,7.40521327,135.04,135.0,7.42723697]
[1765209842333,13.56492526,135.03,135.0,0.02]
[1765209842537,14.14492526,135.03,135.0,0.02]
[1765209842730,6.02492526,135.02,135.0,0.02]
[1765209842935,14.14492526,135.03,135.0,0.02]
[1765209843138,8.7,135.03,135.0,0.02]
[1765209843352,14.14492526,135.03,135.0,0.02]
[1765209843550,5.44492526,135.02,135.0,0.02]
[1765209843741,14.25487018,135.01,135.0,0.02]
[1765209843957,14.83487018,135.01,135.0,0.02]
[1765209844436,22.24172893,135.01,135.0,0.02]
[1765209844965,5.44492526,135.04,135.0,0.02]
[1765209845182,5.44492526,135.04,135.0,0.69]
[1765209845183,8.12,135.03,135.0,0.69]
[1765209845550,19.08690865,135.09,135.01,5.44492526]
[1765209845888,34.00804099,135.08,135.02,5.44492526]
[1765209846064,5.44492526,135.07,135.0,0.69]
[1765209846268,28.37753372,135.08,135.02,5.44492526]
[1765209846583,12.84585927,135.12,135.06,5.44492526]
[1765209846874,8.12,135.11,135.06,5.44492526]
[1765209847059,8.12,135.11,135.07,6.11492526]
[1765209847475,8.12,135.11,135.09,5.44492526]
[1765209847651,8.12,135.13,135.1,5.44492526]
[1765209847956,8.12,135.13,135.11,5.44492526]
[1765209848274,22.23127941,135.17,135.08,0.67]
[1765209848275,8.12,135.15,135.12,5.44492526]
[1765209848483,8.12,135.15,135.13,7.40028121]
[1765209848674,8.12,135.15,135.13,8.07028121]
[1765209849257,8.12,135.15,135.14,6.11492526]
[1765209849453,16.20709632,135.19,135.14,6.11492526]
[1765209849673,8.12,135.19,135.15,6.11492526]
[1765209849861,8.12,135.19,135.15,0.67]
[1765209850067,8.12,135.19,135.16,6.11492526]
[1765209850270,0.2,135.23,135.16,6.11492526]
[1765209850271,7.59495516,135.23,135.18,5.44492526]
[1765209850468,8.1,135.22,135.19,12.84164134]
[1765209850861,8.1,135.22,135.2,6.11492526]
[1765209851060,8.1,135.22,135.2,0.67]
[1765209851471,8.1,135.22,135.18,13.51230291]
[1765209851665,5.44492526,135.21,135.17,0.67]
[1765209851868,5.44492526,135.2,135.15,5.44492526]
[1765209852158,5.44492526,135.2,135.15,6.11492526]
[1765209852553,5.44492526,135.2,135.12,16.308864]
[1765209852554,5.44492526,135.18,135.12,12.84562098]
[1765209852755,5.44492526,135.15,135.1,0.67]
[1765209852961,8.1,135.16,135.11,5.44492526]
[1765209853162,13.54492526,135.16,135.1,6.11492526]
[1765209853485,5.44492526,135.15,135.1,8.07189628]
[1765209853787,8.1,135.16,135.11,6.11492526]
[1765209853965,8.1,135.16,135.12,5.44492526]
[1765209854166,8.1,135.16,135.12,0.67]
[1765209854369,6.02492526,135.15,135.1,7.40189628]
[1765209854664,6.02492526,135.15,135.09,8.07242791]
[1765209854665,12.84470188,135.14,135.09,8.07242791]
[1765209854857,12.84413213,135.15,135.1,0.67]
[1765209855270,5.44492526,135.14,135.09,7.40242791]